lending/lending_fUSD_20240824
["ID","MTS","AMOUNT","RATE_DAILY","PERIOD"]
[335766164,1724482257433,-873.96,0.00010999,2]
[335766165,1724482257442,-500.0,0.00010999,2]
[335766166,1724482257454,-873.96,0.00010999,2]
[335766167,1724482257463,-500.0,0.00010999,2]
[335766168,1724482257472,-873.96,0.00010999,2]
[335766169,1724482257480,-500.0,0.00010999,2]
[335766170,1724482257490,-873.96,0.00010999,2]
[335766171,1724482257499,-500.0,0.00010999,2]
[335766172,1724482257508,-873.96,0.00010999,2]
[335766173,1724482257517,-500.0,0.00010999,2]
[335766174,1724482257527,-873.96,0.00010999,2]
[335766175,1724482257536,-500.0,0.00010999,2]
[335766176,1724482257545,-873.96,0.00010999,2]
[335766178,1724482257554,-191.86281974,0.00010999,2]
[335766179,1724482257563,-873.96,0.00010999,2]
[335766180,1724482257572,-873.96,0.00010999,2]
[335766181,1724482257582,-873.96,0.00010999,2]
[335766182,1724482257591,-873.96,0.00010999,2]
[335766183,1724482257600,-873.96,0.00010999,2]
[335766184,1724482257609,-874.0140368,0.00010999,2]
[335766185,1724482257618,-500.0,0.00010999,2]
[335766187,1724482257627,-526.44,0.00010999,2]
[335766188,1724482257636,-500.0,0.00010999,2]
[335766189,1724482257645,-500.0,0.00010999,2]
[335766190,1724482257654,-500.0,0.00010999,2]
[335766191,1724482257663,-500.0,0.00010999,2]
[335766192,1724482257672,-169.8,0.00010999,2]
[335766193,1724482257681,-603.48,0.00010999,2]
[335766194,1724482257691,-603.48,0.00010999,2]
[335766195,1724482257701,-603.48,0.00010999,2]
[335766196,1724482257710,-603.48,0.00010999,2]
[335766197,1724482257719,-603.48,0.00010999,2]
[335766198,1724482257729,-603.48,0.00010999,2]
[335766199,1724482257738,-603.48,0.00010999,2]
[335766200,1724482257747,-603.48,0.00010999,2]
[335766201,1724482257756,-603.48,0.00010999,2]
[335766202,1724482257764,-1355.47,0.00010999,2]
[335766203,1724482257774,-603.48,0.00010999,2]
[335766204,1724482257783,-603.48,0.00010999,2]
[335766205,1724482257792,-1355.47,0.00010999,2]
[335766206,1724482257801,-603.48,0.00010999,2]
[335766207,1724482257811,-603.48,0.00010999,2]
[335766208,1724482257820,-1355.47,0.00010999,2]
[335766209,1724482257830,-603.48,0.00010999,2]
[335766210,1724482257840,-1355.47,0.00010999,2]
[335766211,1724482257849,-603.48,0.00010999,2]
[335766212,1724482257859,-1355.47,0.00010999,2]
[335766213,1724482257868,-1355.47,0.00010999,2]
[335766214,1724482257878,-603.48,0.00010999,2]
[335766215,1724482257888,-1355.47,0.00010999,2]
[335766216,1724482257898,-603.48,0.00010999,2]
[335766217,1724482257907,-1355.47,0.00010999,2]
[335766218,1724482257917,-603.51,0.00010999,2]
[335766219,1724482257926,-1355.47,0.00010999,2]
[335766220,1724482257936,-1355.47,0.00010999,2]
[335766221,1724482257946,-1355.47,0.00010999,2]
[335766222,1724482257956,-1355.47,0.00010999,2]
[335766223,1724482257966,-1355.47,0.00010999,2]
[335766224,1724482257975,-1355.47,0.00010999,2]
[335766225,1724482257984,-1355.47,0.00010999,2]
[335766226,1724482257994,-1355.47,0.00010999,2]
[335766227,1724482258114,-1355.47,0.00010999,2]
[335766228,1724482258128,-1355.54097031,0.00010999,2]
[335766229,1724482258138,-500.0,0.00010999,2]
[335766230,1724482258147,-500.0,0.00010999,2]
[335766231,1724482258156,-500.0,0.00010999,2]
[335766232,1724482258166,-500.0,0.00010999,2]
[335766233,1724482258175,-500.0,0.00010999,2]
[335766234,1724482258185,-599.96,0.00010999,2]
[335766235,1724482258204,-500.0,0.00010999,2]
[335766236,1724482258214,-500.0,0.00010999,2]
[335766237,1724482258224,-500.0,0.00010999,2]
[335766238,1724482258233,-500.0,0.00010999,2]
[335766239,1724482258243,-500.0,0.00010999,2]
[335766240,1724482258253,-500.0,0.00010999,2]
[335766241,1724482258263,-500.0,0.00010999,2]
[335766242,1724482258272,-500.0,0.00010999,2]
[335766243,1724482258282,-500.0,0.00010999,2]
[335766244,1724482258292,-500.0,0.00010999,2]
[335766245,1724482258302,-500.0,0.00010999,2]
[335766246,1724482258312,-500.0,0.00010999,2]
[335766247,1724482258321,-500.0,0.00010999,2]
[335766248,1724482258331,-500.0,0.00010999,2]
[335766249,1724482258341,-500.0,0.00010999,2]
[335766250,1724482258351,-500.0,0.00010999,2]
[335766251,1724482258361,-500.0,0.00010999,2]
[335766252,1724482258371,-500.0,0.00010999,2]
[335766253,1724482258381,-500.0,0.00010999,2]
[335766254,1724482258390,-500.0,0.00010999,2]
[335766255,1724482258400,-500.0,0.00010999,2]
[335766256,1724482258410,-500.0,0.00010999,2]
[335766257,1724482258419,-563.4,0.00010999,2]
[335766258,1724482258429,-150.15,0.00010999,2]
[335766259,1724482258438,-500.0,0.00010999,2]
[335766260,1724482258449,-500.0,0.00010999,2]
[335766261,1724482258459,-500.0,0.00010999,2]
[335766262,1724482258468,-500.0,0.00010999,2]
[335766263,1724482258478,-500.0,0.00010999,2]
[335766264,1724482258487,-500.0,0.00010999,2]
[335766265,1724482258497,-500.0,0.00010999,2]
[335766266,1724482258506,-360.76,0.00010999,2]
[335766267,1724482258515,-500.0,0.00010999,2]
[335766268,1724482258526,-500.0,0.00010999,2]
[335766269,1724482258535,-500.0,0.00010999,2]
[335766270,1724482258545,-500.0,0.00010999,2]
[335766271,1724482258554,-500.0,0.00010999,2]
[335766272,1724482258564,-500.0,0.00010999,2]
[335766273,1724482258573,-500.0,0.00010999,2]
[335766274,1724482258583,-500.0,0.00010999,2]
[335766275,1724482258592,-500.0,0.00010999,2]
[335766276,1724482258602,-500.0,0.00010999,2]
[335766277,1724482258612,-273.36,0.00010999,2]
[335766278,1724482258621,-500.0,0.00010999,2]
[335766279,1724482258631,-500.0,0.00010999,2]
[335766280,1724482258640,-500.0,0.00010999,2]
[335766281,1724482258651,-853.44,0.00010999,2]
[335766282,1724482258660,-500.0,0.00010999,2]
[335766283,1724482258670,-853.44,0.00010999,2]
[335766284,1724482258680,-500.0,0.00010999,2]
[335766285,1724482258694,-853.44,0.00010999,2]
[335766286,1724482258704,-500.0,0.00010999,2]
[335766287,1724482258714,-853.44,0.00010999,2]
[335766289,1724482258724,-500.0,0.00010999,2]
[335766291,1724482258734,-853.44,0.00010999,2]
[335766293,1724482258744,-500.0,0.00010999,2]
[335766295,1724482258753,-853.44,0.00010999,2]
[335766297,1724482258763,-500.0,0.00010999,2]
[335766299,1724482258773,-853.44,0.00010999,2]
[335766301,1724482258783,-500.0,0.00010999,2]
[335766303,1724482258793,-853.44,0.00010999,2]
[335766305,1724482258803,-500.0,0.00010999,2]
[335766307,1724482258813,-853.44,0.00010999,2]
[335766309,1724482258822,-853.44,0.00010999,2]
[335766311,1724482258832,-500.0,0.00010999,2]
[335766313,1724482258842,-853.44,0.00010999,2]
[335766315,1724482258852,-500.0,0.00010999,2]
[335766317,1724482258862,-853.44,0.00010999,2]
[335766319,1724482258872,-500.0,0.00010999,2]
[335766321,1724482258882,-853.44,0.00010999,2]
[335766323,1724482258891,-237.62,0.00010999,2]
[335766325,1724482258901,-853.44,0.00010999,2]
[335766327,1724482258910,-853.44,0.00010999,2]
[335766329,1724482258920,-853.44,0.00010999,2]
[335766331,1724482258930,-853.44,0.00010999,2]
[335766333,1724482258940,-853.63415814,0.00010999,2]
[335766335,1724482258950,-500.0,0.00010999,2]
[335766337,1724482258960,-500.0,0.00010999,2]
[335766339,1724482258970,-500.0,0.00010999,2]
[335766341,1724482258979,-500.0,0.00010999,2]
[335766343,1724482258989,-500.0,0.00010999,2]
[335766345,1724482258999,-500.0,0.00010999,2]
[335766347,1724482259008,-500.0,0.00010999,2]
[335766349,1724482259018,-500.0,0.00010999,2]
[335766350,1724482259027,-500.0,0.00010999,2]
[335766352,1724482259036,-500.0,0.00010999,2]
[335766354,1724482259046,-272.79800014,0.00010999,2]
[335766356,1724482259056,-500.0,0.00010999,2]
[335766358,1724482259065,-500.0,0.00010999,2]
[335766360,1724482259074,-500.0,0.00010999,2]
[335766362,1724482259083,-500.0,0.00010999,2]
[335766364,1724482259092,-500.0,0.00010999,2]
[335766366,1724482259102,-500.0,0.00010999,2]
[335766368,1724482259111,-486.75154933,0.00010999,2]
[335766370,1724482259121,-653.49,0.00010999,2]
[335766372,1724482259130,-653.49,0.00010999,2]
[335766374,1724482259139,-653.49,0.00010999,2]
[335766375,1724482259149,-653.49,0.00010999,2]
[335766377,1724482259158,-500.0,0.00010999,2]
[335766379,1724482259169,-610.21,0.00010999,2]
[335766381,1724482259178,-500.0,0.00010999,2]
[335766383,1724482259188,-653.49,0.00010999,2]
[335766385,1724482259198,-610.21,0.00010999,2]
[335766387,1724482259207,-500.0,0.00010999,2]
[335766389,1724482259216,-653.49,0.00010999,2]
[335766391,1724482259226,-610.21,0.00010999,2]
[335766393,1724482259235,-500.0,0.00010999,2]
[335766395,1724482259243,-653.49,0.00010999,2]
[335766397,1724482259253,-610.21,0.00010999,2]
[335766399,1724482259262,-500.0,0.00010999,2]
[335766401,1724482259271,-653.49,0.00010999,2]
[335766403,1724482259280,-610.21,0.00010999,2]
[335766405,1724482259289,-238.24,0.00010999,2]
[335766407,1724482259298,-653.49,0.00010999,2]
[335766409,1724482259307,-610.21,0.00010999,2]
[335766411,1724482259317,-653.49,0.00010999,2]
[335766412,1724482259326,-610.21,0.00010999,2]
[335766414,1724482259335,-653.49,0.00010999,2]
[335766416,1724482259344,-610.21,0.00010999,2]
[335766418,1724482259354,-653.49,0.00010999,2]
[335766420,1724482259363,-610.21,0.00010999,2]
[335766422,1724482259372,-653.49,0.00010999,2]
[335766424,1724482259381,-567.57,0.00010999,2]
[335766426,1724482259390,-610.21,0.00010999,2]
[335766428,1724482259399,-567.57,0.00010999,2]
[335766430,1724482259411,-610.21,0.00010999,2]
[335766432,1724482259420,-653.49,0.00010999,2]
[335766434,1724482259429,-610.21,0.00010999,2]
[335766436,1724482259439,-567.57,0.00010999,2]
[335766438,1724482259452,-653.49,0.00010999,2]
[335766440,1724482259465,-567.57,0.00010999,2]
[335766442,1724482259474,-610.21,0.00010999,2]
[335766444,1724482259483,-653.49,0.00010999,2]
[335766446,1724482259493,-567.57,0.00010999,2]
[335766448,1724482259502,-610.21,0.00010999,2]
[335766450,1724482259511,-653.49,0.00010999,2]
[335766452,1724482259520,-567.57,0.00010999,2]
[335766454,1724482259530,-610.21,0.00010999,2]
[335766456,1724482259539,-653.63240044,0.00010999,2]
[335766458,1724482259548,-567.57,0.00010999,2]
[335766460,1724482259557,-610.21,0.00010999,2]
[335766462,1724482259567,-567.57,0.00010999,2]
[335766464,1724482259576,-610.21,0.00010999,2]
[335766466,1724482259585,-567.57,0.00010999,2]
[335766468,1724482259595,-610.21,0.00010999,2]
[335766470,1724482259604,-567.57,0.00010999,2]
[335766472,1724482259613,-610.21,0.00010999,2]
[335766474,1724482259622,-567.57,0.00010999,2]
[335766476,1724482259631,-610.21,0.00010999,2]
[335766478,1724482259641,-567.57,0.00010999,2]
[335766479,1724482259650,-610.24,0.00010999,2]
[335766481,1724482259659,-567.76890002,0.00010999,2]
[335766483,1724482259668,-883.29,0.00010999,2]
[335766485,1724482259677,-883.29,0.00010999,2]
[335766487,1724482259686,-883.29,0.00010999,2]
[335766489,1724482259695,-883.29,0.00010999,2]
[335766491,1724482259704,-883.29,0.00010999,2]
[335766492,1724482259713,-883.29,0.00010999,2]
[335766494,1724482259722,-883.29,0.00010999,2]
[335766496,1724482259731,-883.29,0.00010999,2]
[335766498,1724482259740,-883.29,0.00010999,2]
[335766500,1724482259749,-883.29,0.00010999,2]
[335766502,1724482259758,-883.29,0.00010999,2]
[335766504,1724482259767,-883.29,0.00010999,2]
[335766506,1724482259776,-883.29,0.00010999,2]
[335766508,1724482259785,-883.29,0.00010999,2]
[335766510,1724482259794,-883.29,0.00010999,2]
[335766512,1724482259803,-883.29,0.00010999,2]
[335766513,1724482259812,-883.29,0.00010999,2]
[335766514,1724482259822,-883.52,0.00010999,2]
[335766515,1724482259831,-3431.76,0.00010999,2]
[335766516,1724482259842,-3431.76,0.00010999,2]
[335766517,1724482259851,-3431.76,0.00010999,2]
[335766518,1724482259861,-3431.76,0.00010999,2]
[335766519,1724482259870,-3431.76,0.00010999,2]
[335766520,1724482259879,-3431.76,0.00010999,2]
[335766521,1724482259889,-3431.76,0.00010999,2]
[335766522,1724482259898,-3431.76,0.00010999,2]
[335766523,1724482259907,-3431.76,0.00010999,2]
[335766524,1724482259917,-3431.76,0.00010999,2]
[335766525,1724482259926,-3431.76,0.00010999,2]
[335766526,1724482259935,-3431.76,0.00010999,2]
[335766527,1724482259946,-3431.76,0.00010999,2]
[335766528,1724482259956,-3431.76,0.00010999,2]
[335766529,1724482259965,-3431.76,0.00010999,2]
[335766530,1724482259975,-3431.76,0.00010999,2]
[335766531,1724482259984,-3431.76,0.00010999,2]
[335766532,1724482259994,-3431.76,0.00010999,2]
[335766533,1724482260003,-308.69434635,0.00010999,2]
[335766534,1724482260382,-590.0,0.00010999,2]
[335766535,1724482260395,-2533.06565365,0.00010999,2]
[335766536,1724482260404,-2453.21934623,0.00010999,2]
[335766537,1724482260416,-357.69482547,0.00010999,2]
[335766538,1724482260428,-620.8458283,0.00010999,2]
[335766539,1724482260437,-539.76218953,0.00010999,2]
[335766540,1724482260455,-423.95581672,0.00010999,2]
[335766541,1724482260466,-500.0,0.00010999,2]
[335766542,1724482260579,-706.34188864,0.00010999,2]
[335766543,1724482260594,-1261.79010511,0.00010999,2]
[335766544,1724482260604,-500.0,0.00010999,2]
[335766545,1724482260613,-500.0,0.00010999,2]
[335766546,1724482260622,-381.52,0.00010999,2]
[335766548,1724482260631,-500.0,0.00010999,2]
[335766550,1724482260641,-500.0,0.00010999,2]
[335766552,1724482260650,-500.0,0.00010999,2]
[335766553,1724482260659,-9067.83,0.00010999,2]
[335766554,1724482260667,-500.0,0.00010999,2]
[335766555,1724482260676,-9067.83,0.00010999,2]
[335766556,1724482260685,-500.0,0.00010999,2]
[335766557,1724482260695,-9067.83,0.00010999,2]
[335766558,1724482260704,-500.0,0.00010999,2]
[335766559,1724482260713,-9067.83,0.00010999,2]
[335766560,1724482260722,-9067.83,0.00010999,2]
[335766561,1724482260731,-500.0,0.00010999,2]
[335766562,1724482260740,-9067.83,0.00010999,2]
[335766563,1724482260749,-500.0,0.00010999,2]
[335766564,1724482260758,-9067.83,0.00010999,2]
[335766565,1724482260767,-500.0,0.00010999,2]
[335766566,1724482260777,-500.0,0.00010999,2]
[335766567,1724482260786,-1638.16759195,0.00010999,2]
[335766570,1724482323955,-194.18721405,0.00010432,2]
[335766571,1724482393895,1894.0,0.00027,120]
[335766580,1724482556239,157.16,7.307e-05,2]
[335766582,1724482577527,607.12,8.219e-05,2]
[335766624,1724482637901,9320.64558111,8.219e-05,2]
[335766625,1724482643259,250.0,9.973e-05,2]
[335766626,1724482671622,791.65079818,9.973e-05,2]
[335766627,1724482705716,2207.7,9.982e-05,2]
[335766628,1724482771632,791.14503336,9.973e-05,2]
[335766629,1724482777412,297.09,9.957e-05,2]
[335766630,1724482843617,41817.12,9.959e-05,2]
[335766631,1724482848726,154.82,9.938e-05,2]
[335766632,1724482869629,458.78931347,9.957e-05,2]
[335766633,1724482886080,194.18,9.928e-05,2]
[335766634,1724482931476,336.80860674,9.938e-05,2]
[335766635,1724482935911,300.0,9.938e-05,2]
[335766636,1724483050560,26171.27753304,0.00010009,2]
[335766637,1724483050869,194.18721405,9.997e-05,2]
[335766638,1724483060972,157.16,7.176e-05,2]
[335766640,1724483131314,533.25,9.907e-05,2]
[335766641,1724483156349,250.0,9.918e-05,2]
[335766642,1724483206177,2511.73,9.913e-05,2]
[335766650,1724483256361,603.15,8.219e-05,2]
[335766651,1724483301165,2388.81570417,0.00010009,2]
[335766652,1724483316450,317.10792285,0.00010009,2]
[335766663,1724483356214,232.23,9.911e-05,2]
[335766664,1724483377214,3406.18641792,0.00010009,2]
[335766665,1724483388601,194.18,9.923e-05,2]
[335766666,1724483417771,219.4127813,0.00010009,2]
[335766668,1724483431966,-300.0,0.00010025,2]
[335766669,1724483431976,-155.26377723,0.00010026,2]
[335766670,1724483431987,-315.80250777,0.00010026,2]
[335766671,1724483431998,-180.56349558,0.00010026,2]
[335766672,1724483432008,-1560.72899268,0.00010026,2]
[335766673,1724483432019,-629.05909233,0.00010026,2]
[335766674,1724483432029,-1000.0,0.00010259,2]
[335766675,1724483432039,-205.81278595,0.00010432,2]
[335766676,1724483432049,-603.15,0.00010472,2]
[335766677,1724483432060,-10613.4646985,0.0001069,2]
[335766678,1724483432121,-435.5483015,0.0001069,2]
[335766679,1724483432131,-219.6,0.00010728,2]
[335766680,1724483432142,-150.0,0.00010757,2]
[335766681,1724483432153,-263.24769125,0.00010758,2]
[335766682,1724483432164,-499.99,0.00010758,2]
[335766683,1724483432174,-225.67,0.00010789,2]
[335766684,1724483432184,-10952.02,0.00010789,2]
[335766685,1724483432195,-2370.07001143,0.0001079,2]
[335766686,1724483432207,-677.27808857,0.0001079,2]
[335766687,1724483432217,-57.32941353,0.0001079,2]
[335766688,1724483432229,-35602.83267095,0.0001079,2]
[335766689,1724483432241,-7226.18825408,0.0001079,2]
[335766690,1724483432253,-903.92013879,0.0001079,2]
[335766691,1724483432264,-2300.0,0.0001079,2]
[335766692,1724483432276,-286.18192272,0.0001079,2]
[335766693,1724483432288,-360.246502,0.0001079,2]
[335766694,1724483432300,-5151.0318562,0.0001079,2]
[335766695,1724483432312,-8959.31889589,0.0001079,2]
[335766727,1724483438139,-492.40723222,0.00010713,2]
[335766734,1724483438343,-649.54015119,0.00010713,2]
[335766735,1724483438353,-167.771682,0.00010713,2]
[335766736,1724483438363,-98560.83464584,0.0001079,2]
[335766737,1724483438372,-523.48607601,0.00010852,2]
[335766738,1724483438382,-265.54939791,0.00010852,2]
[335766739,1724483438392,-344.68414072,0.00010852,2]
[335766740,1724483438402,-155.0,0.00010862,2]
[335766741,1724483438411,-155.0,0.00010862,2]
[335766742,1724483438422,-150.0,0.00010878,2]
[335766743,1724483438432,-2505.53754963,0.00010899,2]
[335766744,1724483438443,-547.39285044,0.00010899,2]
[335766745,1724483438452,-747.03973624,0.00010899,2]
[335766746,1724483438461,-234.67451976,0.000109,2]
[335766747,1724483438470,-155.17057854,0.00010949,2]
[335766748,1724483438479,-247.78391298,0.00010958,2]
[335766749,1724483438489,-500.0,0.00010958,2]
[335766750,1724483438498,-619.51985373,0.00010958,2]
[335766751,1724483438507,-500.0,0.00010958,2]
[335766752,1724483438517,-500.0,0.00010958,2]
[335766753,1724483438526,-500.0,0.00010958,2]
[335766754,1724483438536,-504.224466,0.00010958,2]
[335766755,1724483438545,-500.0,0.00010958,2]
[335766757,1724483438554,-500.0,0.00010958,2]
[335766758,1724483438563,-500.0,0.00010958,2]
[335766759,1724483438572,-500.0,0.00010958,2]
[335766760,1724483438581,-500.0,0.00010958,2]
[335766761,1724483438591,-500.0,0.00010958,2]
[335766762,1724483438601,-500.0,0.00010958,2]
[335766763,1724483438610,-500.0,0.00010958,2]
[335766764,1724483438619,-649.95295601,0.00010958,2]
[335766765,1724483438628,-378.3,0.00010958,2]
[335766766,1724483438637,-500.0,0.00010958,2]
[335766767,1724483438647,-330.4297331,0.00010958,2]
[335766768,1724483438656,-500.0,0.00010958,2]
[335766769,1724483438665,-500.0,0.00010958,2]
[335766771,1724483438675,-523.87329373,0.00010958,2]
[335766773,1724483438684,-528.61950668,0.00010958,2]
[335766775,1724483438694,-500.0,0.00010958,2]
[335766777,1724483438703,-500.0,0.00010958,2]
[335766779,1724483438713,-518.99976088,0.00010958,2]
[335766781,1724483438722,-500.0,0.00010958,2]
[335766783,1724483438731,-500.0,0.00010958,2]
[335766785,1724483438740,-537.25835364,0.00010958,2]
[335766787,1724483438750,-500.0,0.00010958,2]
[335766789,1724483438759,-500.0,0.00010958,2]
[335766791,1724483438768,-526.98194349,0.00010958,2]
[335766793,1724483438777,-500.0,0.00010958,2]
[335766795,1724483438786,-500.0,0.00010958,2]
[335766797,1724483438796,-500.0,0.00010958,2]
[335766799,1724483438806,-517.09430629,0.00010958,2]
[335766801,1724483438815,-529.19725529,0.00010958,2]
[335766803,1724483438826,-500.0,0.00010958,2]
[335766805,1724483438836,-500.0,0.00010958,2]
[335766807,1724483438848,-500.0,0.00010958,2]
[335766809,1724483438858,-500.0,0.00010958,2]
[335766811,1724483438867,-500.0,0.00010958,2]
[335766813,1724483438876,-500.0,0.00010958,2]
[335766815,1724483438887,-500.0,0.00010958,2]
[335766817,1724483438896,-500.0,0.00010958,2]
[335766819,1724483438905,-500.0,0.00010958,2]
[335766821,1724483438915,-500.0,0.00010958,2]
[335766823,1724483438924,-366.45,0.00010958,2]
[335766825,1724483438935,-500.0,0.00010958,2]
[335766827,1724483438944,-500.0,0.00010958,2]
[335766829,1724483438952,-500.0,0.00010958,2]
[335766831,1724483438961,-500.0,0.00010958,2]
[335766833,1724483438970,-500.0,0.00010958,2]
[335766835,1724483438980,-500.0,0.00010958,2]
[335766837,1724483438989,-500.0,0.00010958,2]
[335766839,1724483438998,-336.44,0.00010958,2]
[335766841,1724483439008,-500.0,0.00010958,2]
[335766843,1724483439016,-500.0,0.00010958,2]
[335766845,1724483439025,-500.0,0.00010958,2]
[335766847,1724483439034,-500.0,0.00010958,2]
[335766849,1724483439044,-500.0,0.00010958,2]
[335766851,1724483439053,-500.0,0.00010958,2]
[335766853,1724483439063,-528.34269695,0.00010958,2]
[335766855,1724483439072,-500.0,0.00010958,2]
[335766857,1724483439081,-500.0,0.00010958,2]
[335766859,1724483439090,-500.0,0.00010958,2]
[335766861,1724483439100,-500.0,0.00010958,2]
[335766863,1724483439109,-500.0,0.00010958,2]
[335766865,1724483439118,-500.0,0.00010958,2]
[335766866,1724483439128,-500.0,0.00010958,2]
[335766868,1724483439137,-500.0,0.00010958,2]
[335766870,1724483439146,-445.55619433,0.00010958,2]
[335766872,1724483439156,-534.48380596,0.00010958,2]
[335766874,1724483439165,-500.0,0.00010958,2]
[335766876,1724483439174,-160.77679114,0.00010958,2]
[335766878,1724483439183,-500.0,0.00010958,2]
[335766880,1724483439193,-338.59549731,0.00010958,2]
[335766882,1724483439202,-500.0,0.00010958,2]
[335766884,1724483439210,-1445.43,0.00010958,2]
[335766886,1724483439223,-500.0,0.00010958,2]
[335766888,1724483439232,-500.0,0.00010958,2]
[335766890,1724483439241,-5221.31,0.00010958,2]
[335766893,1724483439255,-8260.3,0.00010958,2]
[335766895,1724483439264,-500.0,0.00010958,2]
[335766897,1724483439273,-500.0,0.00010958,2]
[335766899,1724483439283,-500.0,0.00010958,2]
[335766901,1724483439292,-500.0,0.00010958,2]
[335766903,1724483439301,-500.0,0.00010958,2]
[335766905,1724483439310,-500.0,0.00010958,2]
[335766907,1724483439319,-692.31,0.00010958,2]
[335766909,1724483439328,-500.0,0.00010958,2]
[335766911,1724483439338,-588.63,0.00010958,2]
[335766913,1724483439347,-500.0,0.00010958,2]
[335766915,1724483439357,-500.0,0.00010958,2]
[335766917,1724483439366,-500.0,0.00010958,2]
[335766919,1724483439376,-500.0,0.00010958,2]
[335766920,1724483439385,-878.24,0.00010958,2]
[335766922,1724483439395,-1375.09,0.00010958,2]
[335766924,1724483439404,-580.62,0.00010958,2]
[335766926,1724483439413,-800.34,0.00010958,2]
[335766927,1724483439423,-460.11566412,0.00010958,2]
[335766928,1724483439432,-500.0,0.00010958,2]
[335766929,1724483439441,-500.0,0.00010958,2]
[335766930,1724483439452,-1331.09,0.00010958,2]
[335766931,1724483439462,-284.64,0.00010958,2]
[335766932,1724483439472,-500.0,0.00010958,2]
[335766933,1724483439483,-844.57,0.00010958,2]
[335766934,1724483439492,-500.0,0.00010958,2]
[335766935,1724483439502,-500.0,0.00010958,2]
[335766936,1724483439512,-500.0,0.00010958,2]
[335766937,1724483439522,-500.0,0.00010958,2]
[335766938,1724483439531,-2469.91,0.00010958,2]
[335766939,1724483439540,-1209.71,0.00010958,2]
[335766940,1724483439551,-3173.42,0.00010958,2]
[335766941,1724483439561,-500.0,0.00010958,2]
[335766942,1724483439572,-500.0,0.00010958,2]
[335766943,1724483439583,-500.0,0.00010958,2]
[335766945,1724483439592,-743.88,0.00010958,2]
[335766946,1724483439601,-500.0,0.00010958,2]
[335766948,1724483439611,-596.33,0.00010958,2]
[335766950,1724483439623,-874.87,0.00010958,2]
[335766952,1724483439634,-500.0,0.00010958,2]
[335766954,1724483439643,-1260.65,0.00010958,2]
[335766956,1724483439653,-2383.53,0.00010958,2]
[335766958,1724483439664,-785.82,0.00010958,2]
[335766960,1724483439674,-500.0,0.00010958,2]
[335766962,1724483439684,-500.0,0.00010958,2]
[335766964,1724483439694,-1662.82,0.00010958,2]
[335766967,1724483439704,-744.74,0.00010958,2]
[335766969,1724483439714,-500.0,0.00010958,2]
[335766971,1724483439724,-886.83,0.00010958,2]
[335766973,1724483439733,-500.0,0.00010958,2]
[335766974,1724483439743,-500.0,0.00010958,2]
[335766977,1724483439753,-500.0,0.00010958,2]
[335766979,1724483439763,-500.0,0.00010958,2]
[335766981,1724483439773,-500.0,0.00010958,2]
[335766983,1724483439783,-500.0,0.00010958,2]
[335766985,1724483439794,-500.0,0.00010958,2]
[335766988,1724483439806,-544.79239795,0.00010958,2]